[Event "Titled Tuesday Blitz July 18 Early 2023"]
[White "Stork, Oliver"]
[Black "Cardozo Munar, Carlos Eduardo"]
[WhiteFideId "12955728"]
[BlackFideId "4409477"]
[WhiteElo "2414"]
[BlackElo "2260"]
[Result "1-0"]
[Round "10"]
[TimeControl "180+2"]
[Date "2023.07.18"]
[WhiteClock "0:01:00"]
[BlackClock "0:00:36"]
[Board "139"]

1. e4 {[%clk 0:03:00]}  e6 {[%clk 0:02:59]} 2. d4 {[%clk 0:03:00]}  d5 {[%clk 0:03:00]} 3. Nd2 {[%clk 0:03:00]}  c5 {[%clk 0:02:55]} 4. Ngf3 {[%clk 0:02:59]}  Nf6 {[%clk 0:02:53]} 5. Bb5+ {[%clk 0:02:48]}  Bd7 {[%clk 0:02:47]} 6. Bxd7+ {[%clk 0:02:45]}  Qxd7 {[%clk 0:02:47]} 7. e5 {[%clk 0:02:43]}  Ng8 {[%clk 0:02:47]} 8. c3 {[%clk 0:02:43]}  Nc6 {[%clk 0:02:47]} 9. O-O {[%clk 0:02:42]}  f6 {[%clk 0:02:47]} 10. exf6 {[%clk 0:02:38]}  Nxf6 {[%clk 0:02:47]} 11. Re1 {[%clk 0:02:38]}  cxd4 {[%clk 0:02:47]} 12. cxd4 {[%clk 0:02:38]}  Bd6 {[%clk 0:02:46]} 13. Ng5 {[%clk 0:02:32]}  Nxd4 {[%clk 0:02:38]} 14. Nf1 {[%clk 0:02:26]}  e5 {[%clk 0:02:22]} 15. Qxd4 {[%clk 0:02:25]}  O-O {[%clk 0:02:18]} 16. Qd1 {[%clk 0:02:19]}  e4 {[%clk 0:02:17]} 17. Ng3 {[%clk 0:02:17]}  Rad8 {[%clk 0:02:07]} 18. Be3 {[%clk 0:02:06]}  Bb8 {[%clk 0:02:06]} 19. Bd4 {[%clk 0:02:00]}  Ng4 {[%clk 0:02:01]} 20. Qb3 {[%clk 0:01:49]}  h5 {[%clk 0:01:36]} 21. Nxh5 {[%clk 0:01:38]}  Bxh2+ {[%clk 0:01:34]} 22. Kh1 {[%clk 0:01:35]}  Bb8 {[%clk 0:01:24]} 23. Nxg7 {[%clk 0:01:26]}  Nxf2+ {[%clk 0:01:07]} 24. Bxf2 {[%clk 0:01:24]}  Qxg7 {[%clk 0:01:07]} 25. Nxe4 {[%clk 0:01:17]}  Qh7+ {[%clk 0:01:03]} 26. Kg1 {[%clk 0:01:17]}  Qh2+ {[%clk 0:00:52]} 27. Kf1 {[%clk 0:01:16]}  Qh1+ {[%clk 0:00:53]} 28. Ke2 {[%clk 0:01:15]}  Qxg2 {[%clk 0:00:54]} 29. Rg1 {[%clk 0:01:15]}  Qxg1 {[%clk 0:00:36]} 30. Rxg1+ {[%clk 0:01:13]}  Kf7 {[%clk 0:00:36]} 31. Ng5+ {[%clk 0:01:12]}  Ke7 {[%clk 0:00:35]} 32. Qxb7+ {[%clk 0:01:06]}  Kd6 {[%clk 0:00:35]} 33. Bg3+ {[%clk 0:01:03]}  Kc5 {[%clk 0:00:35]} 34. Rc1+ {[%clk 0:01:02]}  Kd4 {[%clk 0:00:36]} 35. Qb4# {[%clk 0:01:00]} 1-0


[Site "https://www.chess.com"]

[Event "Titled Tuesday Blitz July 18 Early 2023"]
[White "Johnson, Ben"]
[Black "Clawitter, Craig"]
[WhiteFideId "2010917"]
[BlackFideId "2023105"]
[WhiteElo "2116"]
[BlackElo "2267"]
[Result "0-1"]
[Round "10"]
[TimeControl "180+2"]
[Date "2023.07.18"]
[WhiteClock "0:00:00"]
[BlackClock "0:00:09"]
[Board "141"]

1. Nf3 {[%clk 0:03:00]}  Nf6 {[%clk 0:03:00]} 2. c4 {[%clk 0:03:00]}  e6 {[%clk 0:02:59]} 3. b3 {[%clk 0:03:00]}  d5 {[%clk 0:02:58]} 4. cxd5 {[%clk 0:02:55]}  exd5 {[%clk 0:02:58]} 5. Bb2 {[%clk 0:02:55]}  c5 {[%clk 0:02:59]} 6. e3 {[%clk 0:02:54]}  Nc6 {[%clk 0:02:59]} 7. Bb5 {[%clk 0:02:53]}  Bd6 {[%clk 0:02:30]} 8. O-O {[%clk 0:02:50]}  O-O {[%clk 0:02:29]} 9. d4 {[%clk 0:02:11]}  Bg4 {[%clk 0:02:13]} 10. dxc5 {[%clk 0:01:51]}  Bxc5 {[%clk 0:02:13]} 11. h3 {[%clk 0:01:45]}  Bh5 {[%clk 0:01:56]} 12. Be2 {[%clk 0:01:43]}  Re8 {[%clk 0:01:20]} 13. Nbd2 {[%clk 0:01:32]}  Ne4 {[%clk 0:01:09]} 14. Rc1 {[%clk 0:01:19]}  Bb6 {[%clk 0:01:04]} 15. Nxe4 {[%clk 0:00:44]}  dxe4 {[%clk 0:01:04]} 16. Nd2 {[%clk 0:00:40]}  Bg6 {[%clk 0:00:52]} 17. Nc4 {[%clk 0:00:40]}  Bc7 {[%clk 0:00:50]} 18. Qxd8 {[%clk 0:00:33]}  Raxd8 {[%clk 0:00:51]} 19. Rfd1 {[%clk 0:00:30]}  f5 {[%clk 0:00:32]} 20. a4 {[%clk 0:00:25]}  Bf7 {[%clk 0:00:26]} 21. Ba3 {[%clk 0:00:23]}  Rd5 {[%clk 0:00:24]} 22. Rxd5 {[%clk 0:00:19]}  Bxd5 {[%clk 0:00:25]} 23. Rd1 {[%clk 0:00:19]}  Rd8 {[%clk 0:00:25]} 24. Kf1 {[%clk 0:00:15]}  Kf7 {[%clk 0:00:17]} 25. Bb2 {[%clk 0:00:11]}  g6 {[%clk 0:00:12]} 26. Rc1 {[%clk 0:00:10]}  Ke6 {[%clk 0:00:11]} 27. g3 {[%clk 0:00:09]}  Ne5 {[%clk 0:00:09]} 28. Nxe5 {[%clk 0:00:08]}  Bxe5 {[%clk 0:00:09]} 29. Bxe5 {[%clk 0:00:07]}  Kxe5 {[%clk 0:00:10]} 30. Rc7 {[%clk 0:00:07]}  Bxb3 {[%clk 0:00:10]} 31. Rxb7 {[%clk 0:00:06]}  Bxa4 {[%clk 0:00:10]} 32. Rxa7 {[%clk 0:00:07]}  Bd1 {[%clk 0:00:10]} 33. Rxh7 {[%clk 0:00:07]}  Rd2 {[%clk 0:00:09]} 34. Bxd1 {[%clk 0:00:06]}  Rxd1+ {[%clk 0:00:09]} 35. Ke2 {[%clk 0:00:07]}  Ra1 {[%clk 0:00:09]} 36. Rh6 {[%clk 0:00:06]}  Kf6 {[%clk 0:00:09]} 37. h4 {[%clk 0:00:00]}  Kg7 {[%clk 0:00:09]} 0-1


[Site "https://www.chess.com"]

[Event "Titled Tuesday Blitz July 18 Early 2023"]
[White "Floresvillar Gonzalez, Luis Migu"]
[Black "Lisjak, Zlatko"]
[WhiteFideId "5100542"]
[BlackFideId "14502186"]
[WhiteElo "2075"]
[BlackElo "2152"]
[Result "0-1"]
[Round "10"]
[TimeControl "180+2"]
[Date "2023.07.18"]
[WhiteClock "0:00:00"]
[BlackClock "0:00:46"]
[Board "143"]

1. e4 {[%clk 0:02:59]}  d6 {[%clk 0:03:00]} 2. d4 {[%clk 0:02:57]}  Nf6 {[%clk 0:03:00]} 3. Nc3 {[%clk 0:02:56]}  c6 {[%clk 0:03:01]} 4. Bg5 {[%clk 0:02:55]}  Qb6 {[%clk 0:02:58]} 5. Bxf6 {[%clk 0:02:50]}  exf6 {[%clk 0:02:57]} 6. Rb1 {[%clk 0:02:27]}  Be7 {[%clk 0:02:54]} 7. Bc4 {[%clk 0:02:27]}  O-O {[%clk 0:02:53]} 8. Nge2 {[%clk 0:02:27]}  Qc7 {[%clk 0:02:40]} 9. O-O {[%clk 0:02:26]}  b5 {[%clk 0:02:40]} 10. Bd3 {[%clk 0:02:23]}  b4 {[%clk 0:02:31]} 11. Na4 {[%clk 0:02:21]}  Re8 {[%clk 0:02:31]} 12. b3 {[%clk 0:02:16]}  Nd7 {[%clk 0:02:30]} 13. Ng3 {[%clk 0:02:16]}  g6 {[%clk 0:02:25]} 14. Nb2 {[%clk 0:02:15]}  Bf8 {[%clk 0:02:24]} 15. Nc4 {[%clk 0:02:14]}  a5 {[%clk 0:02:13]} 16. a3 {[%clk 0:02:10]}  d5 {[%clk 0:02:10]} 17. exd5 {[%clk 0:02:05]}  cxd5 {[%clk 0:02:06]} 18. Ne3 {[%clk 0:02:05]}  Bb7 {[%clk 0:01:48]} 19. a4 {[%clk 0:02:00]}  f5 {[%clk 0:01:47]} 20. Qf3 {[%clk 0:01:25]}  f4 {[%clk 0:01:43]} 21. Nxd5 {[%clk 0:01:24]}  Bxd5 {[%clk 0:01:42]} 22. Qxd5 {[%clk 0:01:23]}  fxg3 {[%clk 0:01:28]} 23. fxg3 {[%clk 0:01:23]}  Nb6 {[%clk 0:01:28]} 24. Qf3 {[%clk 0:01:08]}  Bg7 {[%clk 0:01:26]} 25. d5 {[%clk 0:01:06]}  Ra7 {[%clk 0:01:14]} 26. h3 {[%clk 0:00:54]}  Qc5+ {[%clk 0:01:10]} 27. Kh2 {[%clk 0:00:52]}  Qxd5 {[%clk 0:01:03]} 28. Qf2 {[%clk 0:00:18]}  Bd4 {[%clk 0:01:00]} 29. Qd2 {[%clk 0:00:15]}  Re3 {[%clk 0:00:55]} 30. Rbe1 {[%clk 0:00:13]}  Rae7 {[%clk 0:00:53]} 31. Rxe3 {[%clk 0:00:12]}  Rxe3 {[%clk 0:00:53]} 32. Qf2 {[%clk 0:00:08]}  Rxd3 {[%clk 0:00:50]} 33. Qxf7+ {[%clk 0:00:05]}  Qxf7 {[%clk 0:00:49]} 34. Rxf7 {[%clk 0:00:05]}  Kxf7 {[%clk 0:00:49]} 35. cxd3 {[%clk 0:00:05]}  Ke6 {[%clk 0:00:50]} 36. g4 {[%clk 0:00:02]}  g5 {[%clk 0:00:49]} 37. g3 {[%clk 0:00:02]}  Ke5 {[%clk 0:00:47]} 38. h4 {[%clk 0:00:02]}  Nd5 {[%clk 0:00:48]} 39. Kg2 {[%clk 0:00:00]}  h6 {[%clk 0:00:46]} 0-1


[Site "https://www.chess.com"]

[Event "Titled Tuesday Blitz July 18 Early 2023"]
[White "Lohani, Sujana"]
[Black "ArchibaldCerveza29"]
[WhiteFideId "12311987"]
[WhiteElo "1935"]
[BlackElo "2425"]
[Result "0-1"]
[Round "10"]
[TimeControl "180+2"]
[Date "2023.07.18"]
[WhiteClock "0:00:00"]
[BlackClock "0:00:07"]
[Board "146"]

1. d4 {[%clk 0:03:00]}  d5 {[%clk 0:02:58]} 2. Nf3 {[%clk 0:03:01]}  Nf6 {[%clk 0:02:57]} 3. c4 {[%clk 0:03:02]}  c6 {[%clk 0:02:57]} 4. e3 {[%clk 0:03:02]}  Bf5 {[%clk 0:02:54]} 5. Nc3 {[%clk 0:03:01]}  dxc4 {[%clk 0:02:49]} 6. Bxc4 {[%clk 0:03:01]}  e6 {[%clk 0:02:49]} 7. O-O {[%clk 0:03:00]}  Be7 {[%clk 0:02:45]} 8. Re1 {[%clk 0:02:54]}  Bg6 {[%clk 0:02:39]} 9. e4 {[%clk 0:02:52]}  O-O {[%clk 0:02:33]} 10. Nh4 {[%clk 0:02:51]}  b5 {[%clk 0:02:20]} 11. Nxg6 {[%clk 0:02:40]}  hxg6 {[%clk 0:02:16]} 12. Bb3 {[%clk 0:02:32]}  a6 {[%clk 0:02:09]} 13. e5 {[%clk 0:02:30]}  Nd5 {[%clk 0:02:09]} 14. Ne4 {[%clk 0:02:28]}  Nd7 {[%clk 0:01:58]} 15. Qg4 {[%clk 0:02:23]}  c5 {[%clk 0:01:48]} 16. Bg5 {[%clk 0:02:15]}  c4 {[%clk 0:01:11]} 17. Bd1 {[%clk 0:01:59]}  Re8 {[%clk 0:00:55]} 18. Qh4 {[%clk 0:01:53]}  Nf8 {[%clk 0:00:39]} 19. Rc1 {[%clk 0:01:37]}  Rc8 {[%clk 0:00:30]} 20. Bf3 {[%clk 0:01:16]}  Bxg5 {[%clk 0:00:22]} 21. Nxg5 {[%clk 0:01:14]}  Ne7 {[%clk 0:00:20]} 22. Re4 {[%clk 0:01:02]}  Nf5 {[%clk 0:00:19]} 23. Qf4 {[%clk 0:01:00]}  b4 {[%clk 0:00:15]} 24. g4 {[%clk 0:00:59]}  Nh4 {[%clk 0:00:11]} 25. Qxf7+ {[%clk 0:00:53]}  Kh8 {[%clk 0:00:11]} 26. Qf4 {[%clk 0:00:37]}  Qxg5 {[%clk 0:00:10]} 27. Bg2 {[%clk 0:00:16]}  Qxf4 {[%clk 0:00:09]} 28. Rxf4 {[%clk 0:00:17]}  Nxg2 {[%clk 0:00:09]} 29. Kxg2 {[%clk 0:00:16]}  Kg8 {[%clk 0:00:09]} 30. h4 {[%clk 0:00:13]}  Nd7 {[%clk 0:00:08]} 31. g5 {[%clk 0:00:12]}  Nb6 {[%clk 0:00:08]} 32. h5 {[%clk 0:00:05]}  gxh5 {[%clk 0:00:07]} 33. Rh1 {[%clk 0:00:05]}  g6 {[%clk 0:00:07]} 34. Rf6 {[%clk 0:00:06]}  Kg7 {[%clk 0:00:07]} 35. Rh3 {[%clk 0:00:05]}  Nd5 {[%clk 0:00:08]} 36. Rhf3 {[%clk 0:00:02]}  c3 {[%clk 0:00:07]} 37. Rf7+ {[%clk 0:00:00]}  Kg8 {[%clk 0:00:07]} 0-1


[Site "https://www.chess.com"]

[Event "Titled Tuesday Blitz July 18 Early 2023"]
[White "Winkels, Marcel"]
[Black "ivana_999"]
[WhiteFideId "1003887"]
[WhiteElo "2074"]
[BlackElo "1916"]
[Result "0-1"]
[Round "10"]
[TimeControl "180+2"]
[Date "2023.07.18"]
[WhiteClock "0:00:54"]
[BlackClock "0:00:04"]
[Board "147"]

1. e4 {[%clk 0:03:00]}  e6 {[%clk 0:02:59]} 2. Nf3 {[%clk 0:03:00]}  d5 {[%clk 0:03:00]} 3. e5 {[%clk 0:03:01]}  c5 {[%clk 0:03:00]} 4. b4 {[%clk 0:03:01]}  cxb4 {[%clk 0:02:59]} 5. a3 {[%clk 0:03:01]}  Nc6 {[%clk 0:02:59]} 6. axb4 {[%clk 0:03:00]}  Bxb4 {[%clk 0:02:57]} 7. c3 {[%clk 0:03:01]}  Bf8 {[%clk 0:02:53]} 8. d4 {[%clk 0:03:01]}  Nge7 {[%clk 0:02:53]} 9. Bd3 {[%clk 0:03:00]}  Nf5 {[%clk 0:02:51]} 10. Qc2 {[%clk 0:02:57]}  Be7 {[%clk 0:02:40]} 11. O-O {[%clk 0:02:55]}  h5 {[%clk 0:02:37]} 12. Na3 {[%clk 0:02:52]}  a6 {[%clk 0:02:37]} 13. Bd2 {[%clk 0:02:34]}  g5 {[%clk 0:02:37]} 14. Rfb1 {[%clk 0:02:32]}  g4 {[%clk 0:02:34]} 15. Ne1 {[%clk 0:02:31]}  h4 {[%clk 0:02:31]} 16. Rb2 {[%clk 0:02:20]}  g3 {[%clk 0:02:26]} 17. fxg3 {[%clk 0:02:19]}  hxg3 {[%clk 0:02:25]} 18. h3 {[%clk 0:02:19]}  Bg5 {[%clk 0:02:18]} 19. Rab1 {[%clk 0:02:08]}  Be3+ {[%clk 0:01:46]} 20. Bxe3 {[%clk 0:02:00]}  Nxe3 {[%clk 0:01:45]} 21. Qe2 {[%clk 0:02:00]}  Qg5 {[%clk 0:01:38]} 22. Nf3 {[%clk 0:01:42]}  Qh6 {[%clk 0:01:33]} 23. Ra2 {[%clk 0:01:40]}  Ng4 {[%clk 0:01:21]} 24. Nb5 {[%clk 0:01:34]}  Ke7 {[%clk 0:01:17]} 25. Nd6 {[%clk 0:01:33]}  Nf2 {[%clk 0:01:10]} 26. Nxb7 {[%clk 0:01:29]}  Rb8 {[%clk 0:00:56]} 27. Rab2 {[%clk 0:01:27]}  Bxb7 {[%clk 0:00:42]} 28. Rxb7+ {[%clk 0:01:26]}  Rxb7 {[%clk 0:00:42]} 29. Rxb7+ {[%clk 0:01:26]}  Kd8 {[%clk 0:00:43]} 30. Rb1 {[%clk 0:01:22]}  Qf4 {[%clk 0:00:32]} 31. Bxa6 {[%clk 0:01:15]}  Nxh3+ {[%clk 0:00:15]} 32. gxh3 {[%clk 0:01:10]}  Rxh3 {[%clk 0:00:15]} 33. Qg2 {[%clk 0:01:10]}  Qh6 {[%clk 0:00:13]} 34. Re1 {[%clk 0:01:06]}  Ne7 {[%clk 0:00:06]} 35. c4 {[%clk 0:01:04]}  Nf5 {[%clk 0:00:05]} 36. cxd5 {[%clk 0:01:03]}  Ne3 {[%clk 0:00:05]} 37. Rxe3 {[%clk 0:00:54]}  Qxe3+ {[%clk 0:00:05]} 38. Kf1 {[%clk 0:00:54]}  Rh1+ {[%clk 0:00:04]} 39. Qxh1 {[%clk 0:00:54]}  Qf2# {[%clk 0:00:04]} 0-1


[Site "https://www.chess.com"]

[Event "Titled Tuesday Blitz July 18 Early 2023"]
[White "Firouzja, Alireza"]
[Black "Dubov, Daniil"]
[WhiteFideId "12573981"]
[BlackFideId "24126055"]
[WhiteElo "3120"]
[BlackElo "3104"]
[Result "1-0"]
[Round "11"]
[TimeControl "180+2"]
[Date "2023.07.18"]
[WhiteClock "0:00:42"]
[BlackClock "0:00:04"]
[Board "3"]

1. d4 {[%clk 0:03:00]}  Nf6 {[%clk 0:02:59]} 2. Bg5 {[%clk 0:03:01]}  d5 {[%clk 0:02:58]} 3. e3 {[%clk 0:03:01]}  Ne4 {[%clk 0:02:59]} 4. Bf4 {[%clk 0:03:01]}  Bf5 {[%clk 0:02:59]} 5. f3 {[%clk 0:03:01]}  Nd6 {[%clk 0:02:59]} 6. Nc3 {[%clk 0:03:01]}  e6 {[%clk 0:02:59]} 7. Qe2 {[%clk 0:02:57]}  Bg6 {[%clk 0:02:49]} 8. O-O-O {[%clk 0:02:56]}  Be7 {[%clk 0:02:47]} 9. e4 {[%clk 0:02:56]}  c6 {[%clk 0:02:47]} 10. Qe3 {[%clk 0:02:47]}  Nd7 {[%clk 0:02:32]} 11. h4 {[%clk 0:02:45]}  h6 {[%clk 0:02:25]} 12. Bd3 {[%clk 0:02:39]}  O-O {[%clk 0:01:31]} 13. h5 {[%clk 0:01:46]}  Bh7 {[%clk 0:01:28]} 14. Nh3 {[%clk 0:01:44]}  Qa5 {[%clk 0:01:12]} 15. Kb1 {[%clk 0:01:39]}  dxe4 {[%clk 0:01:06]} 16. fxe4 {[%clk 0:01:30]}  e5 {[%clk 0:01:04]} 17. dxe5 {[%clk 0:01:31]}  Nxe5 {[%clk 0:01:03]} 18. Qg3 {[%clk 0:01:31]}  Bf6 {[%clk 0:00:55]} 19. Bxh6 {[%clk 0:01:31]}  Ndc4 {[%clk 0:00:30]} 20. Bxg7 {[%clk 0:01:18]}  Bxg7 {[%clk 0:00:28]} 21. h6 {[%clk 0:01:18]}  Bg6 {[%clk 0:00:29]} 22. hxg7 {[%clk 0:01:10]}  Rfd8 {[%clk 0:00:29]} 23. Bxc4 {[%clk 0:01:02]}  Nxc4 {[%clk 0:00:27]} 24. Nf4 {[%clk 0:00:57]}  Qb4 {[%clk 0:00:11]} 25. b3 {[%clk 0:00:49]}  Nd2+ {[%clk 0:00:09]} 26. Rxd2 {[%clk 0:00:42]}  Rxd2 {[%clk 0:00:09]} 27. Nxg6 {[%clk 0:00:42]}  Rad8 {[%clk 0:00:04]} 28. Ne7+ {[%clk 0:00:42]}  Qxe7 {[%clk 0:00:04]} 29. Rh8# {[%clk 0:00:42]} 1-0


[Site "https://www.chess.com"]

[Event "Titled Tuesday Blitz July 18 Early 2023"]
[White "Kramnik, Vladimir"]
[Black "Zemlyanskii, Ivan"]
[WhiteFideId "4101588"]
[BlackFideId "24249971"]
[WhiteElo "2993"]
[BlackElo "2903"]
[Result "0-1"]
[Round "11"]
[TimeControl "180+2"]
[Date "2023.07.18"]
[WhiteClock "0:00:00"]
[BlackClock "0:01:58"]
[Board "5"]

1. e4 {[%clk 0:01:53]}  c5 {[%clk 0:02:58]} 2. Nf3 {[%clk 0:01:52]}  e6 {[%clk 0:02:58]} 3. d4 {[%clk 0:01:52]}  cxd4 {[%clk 0:02:59]} 4. Nxd4 {[%clk 0:01:52]}  Nf6 {[%clk 0:02:59]} 5. Nc3 {[%clk 0:01:52]}  Nc6 {[%clk 0:03:00]} 6. Ndb5 {[%clk 0:01:52]}  Bc5 {[%clk 0:02:58]} 7. Bf4 {[%clk 0:01:50]}  O-O {[%clk 0:02:58]} 8. Bc7 {[%clk 0:01:48]}  Qe7 {[%clk 0:02:59]} 9. Bd6 {[%clk 0:01:49]}  Bxd6 {[%clk 0:02:59]} 10. Qxd6 {[%clk 0:01:49]}  Qd8 {[%clk 0:02:59]} 11. O-O-O {[%clk 0:01:49]}  a6 {[%clk 0:02:59]} 12. Nd4 {[%clk 0:01:47]}  Ne7 {[%clk 0:02:59]} 13. Qg3 {[%clk 0:01:44]}  b5 {[%clk 0:02:53]} 14. e5 {[%clk 0:01:43]}  Nfd5 {[%clk 0:02:41]} 15. Nxd5 {[%clk 0:01:41]}  Nxd5 {[%clk 0:02:42]} 16. Bd3 {[%clk 0:01:40]}  Bb7 {[%clk 0:02:37]} 17. Kb1 {[%clk 0:01:36]}  f5 {[%clk 0:02:24]} 18. h4 {[%clk 0:01:29]}  Qe7 {[%clk 0:02:11]} 19. Rhe1 {[%clk 0:01:27]}  Qb4 {[%clk 0:02:02]} 20. Bf1 {[%clk 0:00:00]}  Rac8 {[%clk 0:01:58]} 0-1


[Site "https://www.chess.com"]

[Event "Titled Tuesday Blitz July 18 Early 2023"]
[White "Galchenko, Matvey"]
[Black "Matinian, Nikita"]
[WhiteFideId "24175480"]
[BlackFideId "24129100"]
[WhiteElo "2890"]
[BlackElo "2753"]
[Result "1-0"]
[Round "11"]
[TimeControl "180+2"]
[Date "2023.07.18"]
[WhiteClock "0:00:14"]
[BlackClock "0:00:57"]
[Board "7"]

1. f4 {[%clk 0:02:56]}  d5 {[%clk 0:02:58]} 2. Nf3 {[%clk 0:02:55]}  g6 {[%clk 0:02:58]} 3. g3 {[%clk 0:02:56]}  Bg7 {[%clk 0:02:59]} 4. Bg2 {[%clk 0:02:57]}  c6 {[%clk 0:03:00]} 5. O-O {[%clk 0:02:57]}  Nf6 {[%clk 0:03:00]} 6. d3 {[%clk 0:02:58]}  O-O {[%clk 0:03:00]} 7. Nc3 {[%clk 0:02:58]}  b5 {[%clk 0:03:00]} 8. a3 {[%clk 0:02:55]}  d4 {[%clk 0:02:45]} 9. Ne4 {[%clk 0:02:53]}  Nxe4 {[%clk 0:02:43]} 10. dxe4 {[%clk 0:02:53]}  c5 {[%clk 0:02:43]} 11. a4 {[%clk 0:02:53]}  b4 {[%clk 0:02:43]} 12. e3 {[%clk 0:02:50]}  Nc6 {[%clk 0:02:37]} 13. exd4 {[%clk 0:02:49]}  cxd4 {[%clk 0:02:34]} 14. e5 {[%clk 0:02:49]}  Ba6 {[%clk 0:02:32]} 15. Re1 {[%clk 0:02:48]}  Rc8 {[%clk 0:02:32]} 16. Ng5 {[%clk 0:02:28]}  Qb6 {[%clk 0:02:22]} 17. Kh1 {[%clk 0:02:07]}  Rfd8 {[%clk 0:02:22]} 18. e6 {[%clk 0:02:07]}  f6 {[%clk 0:02:22]} 19. Nf7 {[%clk 0:02:08]}  Rf8 {[%clk 0:02:21]} 20. f5 {[%clk 0:02:03]}  gxf5 {[%clk 0:02:09]} 21. Qh5 {[%clk 0:02:00]}  Ne5 {[%clk 0:02:10]} 22. Qxf5 {[%clk 0:01:53]}  d3 {[%clk 0:01:46]} 23. Rxe5 {[%clk 0:01:33]}  fxe5 {[%clk 0:01:25]} 24. Be4 {[%clk 0:01:32]}  Rxf7 {[%clk 0:01:26]} 25. Qxf7+ {[%clk 0:01:29]}  Kh8 {[%clk 0:01:25]} 26. Qf5 {[%clk 0:01:30]}  Kg8 {[%clk 0:01:22]} 27. Qxh7+ {[%clk 0:01:22]}  Kf8 {[%clk 0:01:22]} 28. Bh6 {[%clk 0:01:18]}  Qxe6 {[%clk 0:01:23]} 29. Qxg7+ {[%clk 0:00:27]}  Ke8 {[%clk 0:01:23]} 30. cxd3 {[%clk 0:00:21]}  Rc2 {[%clk 0:01:19]} 31. Qf8+ {[%clk 0:00:16]}  Kd7 {[%clk 0:01:19]} 32. Bf5 {[%clk 0:00:17]}  Bb7+ {[%clk 0:01:15]} 33. Kg1 {[%clk 0:00:18]}  Rg2+ {[%clk 0:01:09]} 34. Kf1 {[%clk 0:00:18]}  Rxh2 {[%clk 0:01:08]} 35. Bxe6+ {[%clk 0:00:18]}  Kxe6 {[%clk 0:01:09]} 36. Re1 {[%clk 0:00:17]}  Rh1+ {[%clk 0:01:04]} 37. Kf2 {[%clk 0:00:17]}  Rh2+ {[%clk 0:01:05]} 38. Ke3 {[%clk 0:00:16]}  Rg2 {[%clk 0:01:02]} 39. Qg8+ {[%clk 0:00:16]}  Kd7 {[%clk 0:01:02]} 40. Qg4+ {[%clk 0:00:16]}  Kd6 {[%clk 0:01:02]} 41. d4 {[%clk 0:00:13]}  Rxb2 {[%clk 0:00:59]} 42. dxe5+ {[%clk 0:00:13]}  Kc5 {[%clk 0:00:58]} 43. Qd4+ {[%clk 0:00:14]}  Kc6 {[%clk 0:00:57]} 44. Qxb2 {[%clk 0:00:14]} 1-0


[Site "https://www.chess.com"]

[Event "Titled Tuesday Blitz July 18 Early 2023"]
[White "Karttunen, Mika"]
[Black "Jones, Gawain C B"]
[WhiteFideId "502081"]
[BlackFideId "409561"]
[WhiteElo "2652"]
[BlackElo "2926"]
[Result "0-1"]
[Round "11"]
[TimeControl "180+2"]
[Date "2023.07.18"]
[WhiteClock "0:00:11"]
[BlackClock "0:00:26"]
[Board "12"]

1. c4 {[%clk 0:03:00]}  Nf6 {[%clk 0:02:59]} 2. Nc3 {[%clk 0:03:00]}  g6 {[%clk 0:03:00]} 3. g3 {[%clk 0:02:58]}  Bg7 {[%clk 0:03:00]} 4. Bg2 {[%clk 0:02:58]}  c5 {[%clk 0:03:01]} 5. Nf3 {[%clk 0:02:58]}  O-O {[%clk 0:03:00]} 6. O-O {[%clk 0:02:58]}  Nc6 {[%clk 0:03:01]} 7. d4 {[%clk 0:02:57]}  d6 {[%clk 0:03:01]} 8. d5 {[%clk 0:02:53]}  Na5 {[%clk 0:03:01]} 9. Nd2 {[%clk 0:02:51]}  e6 {[%clk 0:03:01]} 10. Rb1 {[%clk 0:02:42]}  exd5 {[%clk 0:02:59]} 11. cxd5 {[%clk 0:02:42]}  Re8 {[%clk 0:02:59]} 12. e4 {[%clk 0:02:36]}  Bg4 {[%clk 0:02:51]} 13. Qc2 {[%clk 0:02:35]}  b5 {[%clk 0:02:51]} 14. h3 {[%clk 0:02:09]}  Bd7 {[%clk 0:02:48]} 15. b4 {[%clk 0:02:01]}  cxb4 {[%clk 0:02:48]} 16. Rxb4 {[%clk 0:02:01]}  Rc8 {[%clk 0:02:47]} 17. Bb2 {[%clk 0:02:01]}  Nb7 {[%clk 0:02:34]} 18. a4 {[%clk 0:01:18]}  a5 {[%clk 0:02:30]} 19. Rxb5 {[%clk 0:01:18]}  Bxb5 {[%clk 0:02:30]} 20. axb5 {[%clk 0:01:19]}  Nc5 {[%clk 0:02:27]} 21. Ra1 {[%clk 0:01:14]}  h5 {[%clk 0:01:46]} 22. Nc4 {[%clk 0:01:07]}  Nfxe4 {[%clk 0:01:37]} 23. Nxa5 {[%clk 0:00:52]}  Nxc3 {[%clk 0:01:26]} 24. Bxc3 {[%clk 0:00:52]}  Nb3 {[%clk 0:01:01]} 25. Qxb3 {[%clk 0:00:25]}  Bxc3 {[%clk 0:00:58]} 26. Nc6 {[%clk 0:00:16]}  Rxc6 {[%clk 0:00:58]} 27. dxc6 {[%clk 0:00:16]}  Bxa1 {[%clk 0:00:58]} 28. b6 {[%clk 0:00:16]}  Bd4 {[%clk 0:00:52]} 29. c7 {[%clk 0:00:16]}  Qf6 {[%clk 0:00:34]} 30. Qc2 {[%clk 0:00:12]}  Bxb6 {[%clk 0:00:27]} 31. c8=Q {[%clk 0:00:12]}  Qxf2+ {[%clk 0:00:26]} 32. Qxf2 {[%clk 0:00:11]}  Bxf2+ {[%clk 0:00:27]} 33. Kxf2 {[%clk 0:00:12]}  Rxc8 {[%clk 0:00:28]} 34. Bd5 {[%clk 0:00:12]}  Rc5 {[%clk 0:00:26]} 35. Be4 {[%clk 0:00:12]}  Kg7 {[%clk 0:00:26]} 36. g4 {[%clk 0:00:13]}  hxg4 {[%clk 0:00:26]} 37. hxg4 {[%clk 0:00:11]}  Kf6 {[%clk 0:00:26]} 0-1


[Site "https://www.chess.com"]